bitfinex/quotes_SOLUSD_20260202
["timestamp","ask_amount","ask_price","bid_price","bid_amount"]
[1769991697286,32.81811029,102.19,102.14,19.2453041]
[1769991697481,13.57280619,102.19,102.15,19.2453041]
[1769991697894,3.78711288,102.19,102.15,19.2453041]
[1769991698101,3.78711288,102.19,102.16,19.2453041]
[1769991698537,3.78711288,102.19,102.17,11.97294477]
[1769991698683,3.66436282,102.23,102.18,11.97294477]
[1769991698887,3.66436282,102.23,102.16,13.75375313]
[1769991698888,3.66436282,102.23,102.2,11.97294477]
[1769991699089,15.63730759,102.23,102.18,11.97294477]
[1769991699289,3.66436282,102.23,102.19,11.97294477]
[1769991699601,3.66436282,102.23,102.16,38.22517051]
[1769991699602,15.63730759,102.2,102.14,28.4414836]
[1769991699807,3.66436282,102.19,102.15,11.97294477]
[1769991700011,15.63730759,102.19,102.15,9.78900358]
[1769991700210,15.63730759,102.21,102.17,11.97294477]
[1769991700398,22.86807852,102.2,102.16,9.78790736]
[1769991701094,19.2037157,102.19,102.15,9.78909271]
[1769991701306,22.86807852,102.17,102.11,23.16941349]
[1769991701519,19.2037157,102.16,102.12,9.79161021]
[1769991702394,19.2037157,102.16,102.05,102.80129022]
[1769991702395,19.22959515,102.13,102.09,3.96569779]
[1769991702597,22.89395797,102.14,102.1,9.79381969]
[1769991702792,22.89395797,102.16,102.11,19.22959515]
[1769991703617,22.89395797,102.16,102.12,19.22959515]
[1769991703618,3.66436282,102.16,102.12,19.22959515]
[1769991703823,3.66436282,102.16,102.11,19.22959515]
[1769991704631,19.22959515,102.15,102.11,9.79330553]
[1769991705622,3.66436282,102.11,102.0,3.96569779]
[1769991705921,19.22959515,102.1,102.05,3.96569779]
[1769991706217,3.77633366,102.1,102.06,19.22959515]
[1769991706420,23.00592881,102.14,102.09,19.22959515]
[1769991706725,3.77633366,102.13,102.09,19.22959515]
[1769991706900,3.77633366,102.13,102.08,9.79566394]
[1769991707102,3.77633366,102.13,102.09,19.22959515]
[1769991707421,23.00592881,102.11,102.05,3.71839768]
[1769991707626,34.26703792,102.14,102.05,3.71839768]
[1769991707627,23.00592881,102.1,102.05,19.22959515]
[1769991707818,23.00592881,102.1,102.06,9.79809837]
[1769991708000,3.77633366,102.1,102.06,9.79809837]
[1769991708422,23.00592881,102.1,102.06,9.79809837]
[1769991708599,19.22959515,102.08,102.03,37.00076267]
[1769991708802,23.00592881,102.07,102.03,9.80076267]
[1769991709224,34.28347535,102.09,102.01,9.80289552]
[1769991709225,23.00592881,102.05,102.01,9.80289552]
[1769991709602,23.00592881,102.05,102.0,13.52190567]
[1769991709822,23.00592881,102.05,102.01,9.80270465]
[1769991710020,19.22959515,102.04,102.0,13.5219871]
[1769991710301,13.57161233,102.09,102.03,22.94799283]
[1769991710522,32.80120748,102.09,102.04,29.02920988]
[1769991710737,32.79960892,102.11,102.06,19.22959515]
[1769991710916,23.00592881,102.1,102.05,32.74641963]
[1769991711634,19.22959515,102.09,102.05,9.7984268]
[1769991711930,23.00592881,102.09,102.05,9.79903023]
[1769991712509,3.77633366,102.09,102.05,9.79903023]
[1769991712710,32.79960892,102.11,102.05,29.02862538]
[1769991712911,32.79960892,102.11,102.05,53.52642057]
[1769991713222,32.79960892,102.11,102.06,19.22959515]
[1769991713428,23.00592881,102.11,102.06,19.22959515]
[1769991713609,13.56839633,102.13,102.09,19.22959515]
[1769991713799,3.77633366,102.13,102.09,19.22959515]
[1769991714000,24.47281242,102.16,102.1,19.22959515]
[1769991714001,32.79587884,102.15,102.1,19.22959515]
[1769991714222,32.79556116,102.15,102.1,19.22959515]
[1769991714620,3.77633366,102.15,102.11,9.7933601]
[1769991714824,13.56586597,102.15,102.11,29.02295525]
[1769991715030,3.77633366,102.15,102.11,29.02295525]
[1769991716432,32.79395618,102.17,102.12,19.22959515]
[1769991716724,19.22959515,102.16,102.11,53.5063555]
[1769991717030,32.79300352,102.18,102.13,19.22959515]
[1769991717327,3.77633366,102.18,102.14,19.22959515]
[1769991717528,23.00592881,102.18,102.13,19.22959515]
[1769991717723,23.00592881,102.16,102.11,80.7063555]
[1769991717903,3.77633366,102.16,102.12,19.22959515]
[1769991718225,19.22959515,102.17,102.12,19.22959515]
[1769991718531,23.00592881,102.16,102.11,57.22475318]
[1769991719021,29.01746808,102.17,102.12,19.22959515]
[1769991719206,23.00592881,102.18,102.12,22.94799283]
[1769991719406,32.79299144,102.18,102.12,22.94799283]
[1769991719630,32.79299144,102.18,102.13,19.22959515]
[1769991719932,3.77633366,102.18,102.14,19.22959515]
[1769991720312,32.79259395,102.18,102.13,22.94799283]
[1769991720615,3.77633366,102.21,102.17,19.22959515]
[1769991721041,3.77633366,102.21,102.17,29.01639823]
[1769991721906,23.00592881,102.19,102.14,51.67435471]
[1769991722112,23.00592881,102.16,102.11,22.94799283]
[1769991722309,19.22959515,102.13,102.1,9.79382821]
[1769991722514,11.99048922,102.13,102.1,9.79382821]
[1769991723010,11.99048922,102.13,102.08,15.7088869]
[1769991723824,11.99048922,102.12,102.08,3.71839768]
[1769991724007,11.99048922,102.09,102.05,34.29691326]
[1769991724209,11.99048922,102.08,102.05,9.79911807]
[1769991724429,3.77633366,102.09,102.04,29.05472912]
[1769991724430,23.03121967,102.09,102.04,29.05472912]
[1769991724726,23.03121967,102.09,102.04,32.7731268]
[1769991725232,19.25488601,102.08,102.04,13.51824079]
[1769991725433,19.25488601,102.09,102.04,57.2733228]
[1769991725612,13.56873475,102.12,102.06,3.71839768]
[1769991725808,23.03121967,102.11,102.06,22.97328369]
[1769991726010,3.77633366,102.13,102.09,19.25488601]
[1769991726230,23.03121967,102.15,102.1,19.25488601]
[1769991727331,3.77633366,102.15,102.11,29.04824611]
[1769991727511,19.25488601,102.18,102.13,19.25488601]
[1769991727706,3.83294476,102.18,102.14,19.25488601]
[1769991728142,23.08783077,102.17,102.12,3.92703808]
[1769991728441,19.25488601,102.18,102.13,19.25488601]
[1769991728610,3.83294476,102.19,102.15,19.25488601]
[1769991729009,3.83294476,102.18,102.14,19.25488601]
[1769991729213,23.08783077,102.18,102.13,19.25488601]
[1769991729722,23.08783077,102.16,102.1,27.2]
[1769991729930,19.25488601,102.15,102.12,9.7918839]
[1769991730316,19.25488601,102.15,102.11,9.792946]
[1769991730627,19.25488601,102.12,102.07,19.25488601]
[1769991730829,19.25488601,102.12,102.09,13.722314]
[1769991731019,23.08783077,102.14,102.09,29.05016193]
[1769991731211,3.83294476,102.14,102.1,19.25488601]
[1769991731412,32.8764224,102.16,102.11,29.04824611]
[1769991731712,23.08783077,102.15,102.1,9.79388239]
[1769991732030,23.08783077,102.12,102.09,9.79441767]
[1769991732842,23.08783077,102.14,102.1,9.7942376]
[1769991733052,34.26000901,102.16,102.09,9.79481003]
[1769991733053,23.08783077,102.13,102.09,9.79481003]
[1769991733337,19.25488601,102.12,102.08,9.79585945]
[1769991734137,13.62499602,102.13,102.08,9.79585945]
[1769991734324,23.08783077,102.13,102.08,53.54134107]
[1769991734527,4.27527085,102.18,102.12,23.18192409]
[1769991734528,3.83294476,102.18,102.12,23.18192409]
[1769991734731,23.08783077,102.17,102.12,19.25488601]
[1769991735042,23.08783077,102.16,102.1,23.18192409]
[1769991735234,23.08783077,102.16,102.11,19.25488601]
[1769991735615,23.08783077,102.16,102.08,3.92703808]
[1769991735616,19.25488601,102.14,102.08,3.92703808]
[1769991735811,3.83294476,102.15,102.1,32.97576906]
[1769991736055,23.08783077,102.15,102.1,57.46156729]
[1769991736632,23.08783077,102.17,102.11,23.18192409]
[1769991737725,23.08783077,102.17,102.12,53.52828984]
[1769991737917,3.83294476,102.17,102.12,53.52828984]
[1769991738125,23.08783077,102.16,102.12,9.79240109]
[1769991738313,3.83294476,102.16,102.11,9.79307711]
[1769991738515,3.83294476,102.14,102.11,9.79307711]
[1769991738716,19.25488601,102.15,102.11,9.79307711]
[1769991738930,23.08783077,102.16,102.11,9.79307711]
[1769991739136,76.32002232,102.18,102.13,19.25488601]
[1769991739441,3.83294476,102.18,102.14,19.25488601]
[1769991739920,23.08783077,102.2,102.15,29.04441121]
[1769991740123,23.08783077,102.19,102.15,9.7895252]
[1769991740319,23.08783077,102.2,102.15,9.7895252]
[1769991740930,19.25488601,102.18,102.13,3.92703808]
[1769991741218,62.7,102.19,102.11,3.92703808]
[1769991741219,23.08783077,102.16,102.11,3.92703808]
[1769991741425,23.08783077,102.16,102.13,9.79097307]
[1769991741839,13.62008087,102.18,102.12,57.45466237]
[1769991742138,23.08783077,102.16,102.12,9.79240109]
[1769991743641,19.25488601,102.16,102.12,38.20044191]
[1769991743836,23.08783077,102.18,102.13,23.18192409]
[1769991745044,3.83294476,102.21,102.16,23.18192409]
[1769991745250,3.83294476,102.23,102.2,9.78473581]
[1769991745643,23.08783077,102.22,102.17,43.72339742]
[1769991745827,23.08783077,102.22,102.18,9.78615099]
[1769991746028,23.08783077,102.22,102.19,9.78564505]
[1769991746244,23.18783077,102.24,102.19,9.78564505]
[1769991746546,15.89794577,102.24,102.19,50.14191743]
[1769991746728,15.79794577,102.23,102.19,34.24987834]
[1769991746933,15.79794577,102.23,102.19,9.78564505]
[1769991748126,15.79794577,102.21,102.18,9.78664997]
[1769991748339,15.79794577,102.21,102.17,9.78712839]
[1769991748745,15.79794577,102.22,102.18,9.78576123]
[1769991748947,11.96500101,102.21,102.18,9.78576123]
[1769991749350,11.96500101,102.21,102.17,9.78760888]
[1769991749548,11.96500101,102.2,102.17,9.78760888]
[1769991749733,11.96500101,102.2,102.16,13.71518116]
[1769991749937,11.96500101,102.18,102.15,36.98912586]
[1769991750343,11.96500101,102.2,102.16,9.78816068]
[1769991750645,3.83294476,102.23,102.19,11.96500101]
[1769991750865,25.5798386,102.23,102.18,15.89203909]
[1769991751027,15.79794577,102.23,102.18,15.89203909]
[1769991751224,15.79794577,102.23,102.17,27.18]
[1769991751225,25.67914087,102.24,102.19,15.89203909]
[1769991751429,15.79794577,102.23,102.18,36.43011656]
[1769991751629,15.79794577,102.23,102.18,40.35715464]
[1769991752027,11.96500101,102.22,102.18,28.39215363]
[1769991752250,15.79794577,102.22,102.18,24.46511555]
[1769991752636,11.96500101,102.2,102.17,36.96713114]
[1769991752842,11.96500101,102.19,102.16,9.78817298]
[1769991753061,15.79794577,102.2,102.16,9.78817298]
[1769991753533,15.79794577,102.22,102.17,15.89203909]
[1769991753865,74.66500101,102.23,102.18,11.96500101]
[1769991754063,0.1,102.24,102.2,15.89203909]
[1769991754352,0.1,102.24,102.21,11.96500101]
[1769991754850,13.60955234,102.29,102.23,11.96500101]
[1769991755044,3.83294476,102.29,102.26,11.96500101]
[1769991755249,3.83294476,102.28,102.22,3.92703808]
[1769991755434,15.79794577,102.27,102.23,9.78114341]
[1769991755640,21.74269896,102.28,102.23,25.6731825]
[1769991755836,15.79794577,102.29,102.24,11.96500101]
[1769991756347,11.96500101,102.3,102.25,11.96500101]
[1769991756552,15.79794577,102.31,102.25,11.96500101]
[1769991756858,15.79794577,102.3,102.24,15.89203909]
[1769991757648,15.65051346,102.29,102.23,39.14500101]
[1769991757861,15.65051346,102.28,102.24,9.78055335]
[1769991758159,15.65051346,102.27,102.23,9.78151933]
[1769991758344,34.21388051,102.3,102.22,9.78247531]
[1769991758345,15.65051346,102.26,102.22,9.78247531]
[1769991758561,15.65051346,102.26,102.23,9.78176158]
[1769991758948,3.68551245,102.26,102.23,9.78176158]
[1769991759146,15.65051346,102.25,102.22,9.78260565]
[1769991759452,15.65051346,102.27,102.24,9.78063307]
[1769991759657,15.65051346,102.27,102.23,9.78186442]
[1769991759843,11.96500101,102.26,102.23,9.78186442]
[1769991761148,21.7440449,102.26,102.22,9.78282136]
[1769991761351,11.96500101,102.25,102.22,9.78282136]
[1769991761862,15.65051346,102.26,102.22,9.78282136]
[1769991762346,11.96193672,102.25,102.22,9.78282136]
[1769991762751,15.64744917,102.26,102.22,9.78282136]
[1769991763360,3.68551245,102.26,102.22,34.23987477]
[1769991763674,11.96193672,102.27,102.22,49.97564834]
[1769991763852,11.96193672,102.26,102.22,13.55665821]
[1769991764166,11.96193672,102.25,102.22,9.78282136]
[1769991764368,15.64744917,102.26,102.22,9.78282136]
[1769991764748,3.68551245,102.26,102.22,9.78282136]
[1769991765147,11.96193672,102.27,102.22,25.51859493]
[1769991765561,11.96193672,102.27,102.22,49.97564834]
[1769991765868,21.74000862,102.27,102.22,49.97564834]
[1769991766043,11.96193672,102.27,102.22,49.97564834]
[1769991766250,3.68551245,102.28,102.23,11.96193672]
[1769991766663,25.42461443,102.28,102.23,3.90800873]
[1769991766948,25.42461443,102.28,102.23,15.86994545]
[1769991767148,25.71002946,102.29,102.25,9.7799511]
[1769991767669,3.97155245,102.29,102.25,21.74188782]
[1769991767858,13.74780627,102.29,102.25,9.7799511]
[1769991768166,11.96193672,102.28,102.25,9.7799511]
[1769991768571,15.93348917,102.29,102.25,9.7799511]
[1769991769050,11.96193672,102.28,102.24,9.78059919]
[1769991769246,25.71023499,102.29,102.24,21.74253591]
[1769991769442,15.93348917,102.29,102.24,21.74253591]
[1769991769643,15.93348917,102.29,102.24,50.10281381]
[1769991769846,15.93348917,102.29,102.24,38.14087709]
[1769991770047,66.67155245,102.3,102.25,11.96193672]
[1769991770254,76.44706878,102.3,102.24,77.26281381]
[1769991770458,62.7,102.3,102.27,3.90800873]
[1769991770649,3.97155245,102.34,102.29,15.86994545]
[1769991771047,3.97155245,102.34,102.3,11.96193672]
[1769991771244,6.44370282,102.36,102.32,11.96193672]
[1769991771466,6.44370282,102.36,102.32,15.86994545]
[1769991771467,2.47215037,102.36,102.32,15.86994545]
[1769991772351,6.44370282,102.36,102.31,15.86994545]
[1769991772557,2.47215037,102.36,102.32,15.86994545]
[1769991772958,4.07155245,102.4,102.35,3.90800873]
[1769991773150,25.79912573,102.4,102.35,25.63941582]
[1769991773353,4.07155245,102.4,102.37,11.96193672]
[1769991773555,4.07155245,102.4,102.35,38.10346835]
[1769991773768,4.07155245,102.4,102.36,11.96193672]
[1769991773968,0.1,102.4,102.37,11.96193672]
[1769991774165,0.1,102.4,102.36,11.96193672]
[1769991774360,0.1,102.4,102.37,11.96193672]
[1769991774561,4.07155245,102.4,102.35,34.19545962]
[1769991774767,4.07155245,102.4,102.36,11.96193672]
[1769991774967,0.1,102.4,102.36,15.86994545]
[1769991775772,0.1,102.4,102.36,13.67712079]
[1769991775971,16.03348917,102.4,102.36,9.76911206]
[1769991776175,4.28935457,102.45,102.39,11.96193672]
[1769991776350,4.28935457,102.45,102.4,11.96193672]
[1769991776351,3.97412087,102.44,102.4,11.96193672]
[1769991776555,15.93605759,102.42,102.39,27.16]
[1769991776774,15.93605759,102.41,102.36,73.31465174]
[1769991776974,11.96193672,102.37,102.31,11.96193672]
[1769991777155,15.93605759,102.38,102.34,9.77107342]
[1769991777353,11.96193672,102.42,102.36,13.67736792]
[1769991777554,11.96193672,102.42,102.38,9.76753272]
[1769991778159,11.96193672,102.43,102.38,21.72946944]
[1769991778356,7.29232972,102.49,102.42,23.92387344]
[1769991778557,48.5495112,102.64,102.41,11.96193672]
[1769991778558,27.14,102.73,102.55,5.10247829]
[1769991778757,24.36078061,102.63,102.55,5.10247829]
[1769991778957,14.43408709,102.59,102.55,5.10247829]
[1769991779160,9.74294604,102.64,102.55,5.10247829]
[1769991779478,3.97412087,102.62,102.58,11.96193672]
[1769991779780,11.96193672,102.61,102.55,26.81503329]
[1769991780075,9.74279033,102.64,102.58,9.74809377]
[1769991780379,11.96193672,102.64,102.58,21.71003049]
[1769991780579,10.0573112,102.65,102.58,21.71003049]
[1769991780874,11.96193672,102.61,102.57,9.74877991]
[1769991781100,11.96193672,102.58,102.55,5.10247829]
[1769991781281,23.92387344,102.56,102.46,3.90800873]
[1769991781579,34.12521922,102.57,102.47,15.86994545]
[1769991781777,11.96193672,102.5,102.45,15.86994545]
[1769991781980,3.97155245,102.5,102.45,11.96193672]
[1769991782177,3.97155245,102.52,102.45,3.90800873]
[1769991782368,19.09592999,102.5,102.46,9.75985871]
[1769991782573,23.06748244,102.51,102.46,9.75985871]
[1769991782879,23.06748244,102.5,102.45,19.09592999]
[1769991783063,3.97155245,102.49,102.44,24.40354408]
[1769991783264,3.97155245,102.51,102.47,28.85474945]
[1769991783576,23.06748244,102.5,102.46,9.75968364]
[1769991783971,3.97155245,102.5,102.46,9.75968364]
[1769991784169,3.97155245,102.46,102.36,3.90800873]
[1769991784380,3.97155245,102.46,102.43,19.09592999]
[1769991784574,19.09592999,102.44,102.41,9.76467141]
[1769991784778,19.09592999,102.44,102.4,9.76537501]
[1769991785072,23.06748244,102.43,102.39,9.7663119]
[1769991785277,19.09592999,102.42,102.39,9.7663119]
[1769991785481,19.09592999,102.44,102.4,9.76557656]
[1769991785668,3.97155245,102.44,102.4,9.76557656]
[1769991785868,28.85719583,102.45,102.34,27.12]
[1769991785869,19.09592999,102.42,102.37,19.09592999]
[1769991786078,23.06748244,102.41,102.37,9.76778524]
[1769991786369,3.97155245,102.43,102.39,28.86215484]
[1769991786574,23.06748244,102.43,102.39,28.86215484]
[1769991786777,23.06748244,102.43,102.38,28.86317324]
[1769991786967,23.06748244,102.43,102.39,9.7665009]
[1769991787167,23.06748244,102.43,102.39,28.86243089]
[1769991787367,3.97155245,102.44,102.39,19.09592999]
[1769991787567,23.06748244,102.44,102.4,19.09592999]
[1769991787866,3.84964696,102.43,102.39,28.86213697]
[1769991788062,22.94557695,102.43,102.38,28.86313142]
[1769991788273,22.94557695,102.41,102.36,28.86468654]
[1769991788476,22.94557695,102.41,102.37,28.86440898]
[1769991788673,22.94557695,102.41,102.37,28.86416094]
[1769991788888,22.94557695,102.41,102.36,28.86504289]
[1769991789191,22.94557695,102.41,102.37,28.86432033]
[1769991789388,22.94557695,102.41,102.37,9.76839034]
[1769991790284,3.84964696,102.43,102.4,19.09592999]
[1769991790592,3.84964696,102.46,102.42,19.09592999]
[1769991790781,3.84964696,102.46,102.4,3.73404331]
[1769991791089,3.84964696,102.46,102.38,27.12]
[1769991791090,3.84964696,102.44,102.41,19.09592999]
[1769991791590,22.94557695,102.42,102.37,9.76839034]
[1769991791786,19.09592999,102.38,102.35,137.47517642]
[1769991791987,22.94557695,102.38,102.33,19.09592999]
[1769991792290,19.09592999,102.35,102.3,3.73404331]
[1769991792490,19.09592999,102.34,102.3,3.73404331]
[1769991792787,3.84964696,102.36,102.26,59.63941065]
[1769991792788,19.09592999,102.31,102.26,59.63941065]
[1769991792985,3.84964696,102.32,102.27,28.87372112]
[1769991793185,19.09592999,102.32,102.27,3.73404331]
[1769991793391,19.09592999,102.3,102.27,9.77787898]
[1769991793687,22.94557695,102.28,102.19,3.73404331]
[1769991793876,19.09592999,102.26,102.22,13.51617906]
[1769991794075,19.09592999,102.26,102.21,32.61346617]
[1769991794487,3.84964696,102.27,102.23,19.09592999]
[1769991794676,22.94557695,102.29,102.24,19.09592999]
[1769991794994,19.09592999,102.25,102.2,28.88040137]
[1769991795292,19.09592999,102.24,102.2,9.78447138]
[1769991795692,19.09592999,102.23,102.19,13.51940825]
[1769991795991,22.94557695,102.25,102.21,9.78376987]
[1769991796180,83.08083274,102.31,102.19,13.51909129]
[1769991796181,19.09592999,102.23,102.19,13.51909129]
[1769991796375,19.09592999,102.23,102.18,9.78619399]
[1769991796585,3.84964696,102.24,102.18,9.78619399]
[1769991796586,19.09592999,102.22,102.18,9.78619399]
[1769991796782,19.09592999,102.2,102.15,55.32712729]
[1769991796988,19.09592999,102.2,102.15,59.73870071]
[1769991797194,19.09592999,102.16,102.13,0.2]
[1769991797488,19.09592999,102.17,102.13,0.2]
[1769991797800,19.09592999,102.14,102.13,0.2]
[1769991798092,3.84964696,102.22,102.14,3.73404331]
[1769991798294,3.84964696,102.22,102.16,19.09592999]
[1769991798502,22.94557695,102.21,102.15,28.88520658]
[1769991798789,22.94557695,102.22,102.17,19.09592999]
[1769991799390,32.72648461,102.24,102.19,19.09592999]
[1769991799569,22.94557695,102.23,102.18,19.09592999]
[1769991800172,3.84964696,102.23,102.17,3.73404331]
[1769991800394,19.09592999,102.24,102.18,37.98732183]
[1769991800577,22.94557695,102.25,102.19,3.73404331]
[1769991800780,3.84964696,102.24,102.2,19.09592999]
[1769991801491,22.94557695,102.27,102.21,19.09592999]
[1769991801691,22.94557695,102.25,102.2,19.09592999]
[1769991802478,22.94557695,102.25,102.21,9.78377849]
[1769991802683,32.72561978,102.25,102.2,28.88041337]
[1769991803179,19.09592999,102.24,102.2,28.88041337]
[1769991803373,3.84964696,102.25,102.21,19.09592999]
[1769991803700,22.94557695,102.25,102.2,32.61445668]
[1769991803876,22.94557695,102.25,102.21,19.09592999]
[1769991803877,32.72569214,102.25,102.21,19.09592999]
[1769991804082,32.72569214,102.25,102.2,28.88041337]
[1769991804789,22.94557695,102.25,102.21,19.09592999]
[1769991804981,3.84964696,102.25,102.2,9.78448338]
[1769991805179,22.94557695,102.25,102.2,28.88041337]
[1769991805397,22.94557695,102.25,102.21,19.09592999]
[1769991805701,22.94557695,102.25,102.2,28.88041337]
[1769991806400,22.94557695,102.25,102.21,19.09592999]
[1769991806613,19.09592999,102.26,102.22,22.8299733]
[1769991806778,32.72265946,102.28,102.24,19.09592999]
[1769991806977,3.84964696,102.26,102.22,28.87852909]
[1769991807178,19.09592999,102.23,102.19,19.09592999]
[1769991807488,19.09592999,102.23,102.19,9.78564961]
[1769991807677,19.09592999,102.25,102.2,22.8299733]
[1769991808092,22.94557695,102.22,102.19,9.78564961]
[1769991808295,19.09592999,102.21,102.18,9.78655124]
[1769991808802,32.72876856,102.22,102.17,32.61736529]
[1769991809003,19.09592999,102.2,102.16,9.78836019]
[1769991809179,3.84964696,102.21,102.15,22.8299733]
[1769991809379,22.94557695,102.21,102.17,9.78754745]
[1769991809579,19.09592999,102.22,102.17,28.88347744]
[1769991809801,19.09592999,102.21,102.17,9.78754745]
[1769991810278,22.94557695,102.22,102.17,32.61752075]
[1769991810478,15.81811324,102.22,102.17,25.49005704]
[1769991810692,11.96846628,102.21,102.17,13.52159076]
[1769991810886,11.96846628,102.21,102.17,9.78754745]
[1769991811091,11.96846628,102.19,102.14,40.17719755]
[1769991811604,11.96846628,102.17,102.13,11.96846628]
[1769991811897,3.84964696,102.19,102.14,9.79046598]
[1769991812101,11.96846628,102.19,102.15,15.70250959]
[1769991812397,15.81811324,102.21,102.16,15.70250959]
[1769991812593,3.84964696,102.21,102.18,11.96846628]
[1769991812798,3.84964696,102.23,102.18,25.48900726]
[1769991813104,3.84964696,102.28,102.21,3.73404331]
[1769991813396,48.88566724,102.38,102.22,11.96846628]
[1769991813397,15.81811324,102.27,102.22,11.96846628]
[1769991813613,3.84964696,102.27,102.22,11.96846628]
[1769991813782,3.84964696,102.27,102.21,3.73404331]
[1769991813783,15.81811324,102.27,102.23,11.96846628]
[1769991813983,21.74774893,102.26,102.22,11.96846628]
[1769991814184,25.59631052,102.27,102.22,21.75120249]
[1769991814382,21.74416187,102.3,102.24,3.73404331]
[1769991814582,15.81811324,102.31,102.26,11.96846628]
[1769991814806,15.81811324,102.29,102.24,3.73404331]
[1769991815007,11.96846628,102.26,102.22,25.4852458]
[1769991815200,11.96846628,102.25,102.2,25.4869071]
[1769991815511,11.96846628,102.27,102.21,15.70250959]
[1769991815691,15.81811324,102.27,102.22,15.70250959]
[1769991816007,15.81811324,102.27,102.23,11.96846628]
[1769991816200,3.84964696,102.27,102.23,11.96846628]
[1769991816408,21.74614443,102.28,102.24,11.96846628]
[1769991816906,25.59579139,102.28,102.24,11.96846628]
[1769991817108,3.84964696,102.3,102.26,11.96846628]
[1769991817312,29.4,102.33,102.27,15.70250959]
[1769991817313,3.84964696,102.32,102.27,15.70250959]
[1769991817622,3.84964696,102.32,102.27,3.73404331]
[1769991817790,15.81811324,102.32,102.28,11.96846628]
[1769991818105,9.77421561,102.31,102.27,11.96846628]
[1769991818405,9.77421561,102.31,102.26,21.74745069]
[1769991818406,11.96846628,102.3,102.26,21.74745069]
[1769991818635,11.96846628,102.3,102.26,11.96846628]
[1769991818811,15.69286789,102.28,102.22,28.26815532]
[1769991818996,15.69286789,102.28,102.23,25.56245727]
[1769991819317,11.96846628,102.25,102.21,13.59600278]
[1769991819526,11.96846628,102.24,102.19,15.78123788]
[1769991819704,11.96846628,102.24,102.21,9.78377794]
[1769991820006,11.96846628,102.28,102.23,15.78123788]
[1769991820208,21.74408383,102.3,102.26,11.96846628]
[1769991820415,32.66954696,102.3,102.25,22.9822994]
[1769991820817,37.93794682,102.3,102.24,28.95043546]
[1769991820991,19.1695278,102.29,102.25,19.1695278]
[1769991821608,19.1695278,102.28,102.23,32.76379301]
[1769991821912,22.89392941,102.29,102.24,19.1695278]
[1769991822211,9.77708251,102.28,102.24,19.1695278]
[1769991822439,19.1695278,102.28,102.24,32.7628995]
[1769991822724,19.1695278,102.26,102.22,9.78263064]
[1769991822916,19.1695278,102.25,102.21,32.76564772]
[1769991823121,19.1695278,102.24,102.2,3.8127716]
[1769991823320,22.89392941,102.25,102.2,22.9822994]
[1769991823626,3.72440161,102.27,102.23,19.1695278]
[1769991823816,22.89392941,102.27,102.23,19.1695278]
[1769991824012,13.5005283,102.29,102.24,19.1695278]
[1769991824216,28.94565449,102.29,102.25,19.1695278]
[1769991824419,28.94628789,102.29,102.25,28.94965896]
[1769991824618,28.94628789,102.29,102.25,28.94995722]
[1769991824927,19.1701612,102.28,102.24,28.95040006]
[1769991825129,32.6706895,102.29,102.24,28.95040006]
[1769991825517,19.1701612,102.28,102.24,28.95040006]
[1769991825823,32.6706895,102.29,102.25,28.95003326]
[1769991826029,32.6706895,102.29,102.24,28.9508995]
[1769991826219,19.1701612,102.28,102.24,9.7807383]
[1769991826533,19.1701612,102.28,102.24,28.9508995]
[1769991826720,9.77736012,102.28,102.24,28.9508995]
[1769991826922,19.1701612,102.28,102.24,32.69890206]
[1769991827640,19.1701612,102.26,102.23,9.78152839]
[1769991828013,19.1701612,102.27,102.23,9.78152839]
[1769991828327,19.1701612,102.26,102.23,9.78152839]
[1769991828936,19.1701612,102.26,102.22,22.91816376]
[1769991829230,19.1701612,102.25,102.21,22.91816376]
[1769991829432,28.94915663,102.26,102.22,3.74800256]
[1769991830229,28.94915663,102.26,102.19,28.955396]
[1769991830230,23.0648764,102.23,102.19,28.955396]
[1769991830527,13.67371063,102.26,102.2,22.91816376]
[1769991830711,19.1701612,102.25,102.2,22.91816376]
[1769991830911,19.1701612,102.24,102.21,9.78377849]
[1769991831415,19.1701612,102.24,102.2,32.70284259]
[1769991831734,38.12119742,102.26,102.2,32.70284259]
[1769991831735,19.1701612,102.25,102.2,57.16468212]
[1769991832039,29.4,102.27,102.23,19.1701612]
[1769991832040,19.1701612,102.27,102.23,19.1701612]
[1769991832334,23.0648764,102.28,102.23,19.1701612]
[1769991832521,32.84225877,102.28,102.23,19.1701612]
[1769991832830,19.1701612,102.27,102.23,19.1701612]
[1769991833134,23.0648764,102.24,102.18,3.74800256]
[1769991833317,19.1701612,102.23,102.19,9.78519588]
[1769991833517,19.1701612,102.21,102.17,9.7871001]
[1769991833817,19.1701612,102.22,102.18,32.70478906]
[1769991834012,19.1701612,102.23,102.19,19.1701612]
[1769991834444,19.1701612,102.23,102.18,57.17141658]
[1769991834729,19.1701612,102.25,102.21,19.1701612]
[1769991834940,23.0648764,102.26,102.21,19.1701612]
[1769991835116,28.9501123,102.25,102.21,28.95379921]
[1769991835312,19.1701612,102.27,102.22,22.91816376]
[1769991835637,19.1701612,102.25,102.21,9.78363801]
[1769991835825,19.1701612,102.26,102.21,28.95379921]
[1769991836134,19.1701612,102.25,102.21,28.95379921]
[1769991836438,3.8947152,102.26,102.21,32.70180177]
[1769991836439,23.0648764,102.26,102.21,32.70180177]